[Event "Masterklassen 2025"]
[Site "Uppsala, Sweden"]
[Date "2025.06.28"]
[Round "1.7"]
[White "Karde, Douglas"]
[Black "Walinder, Lars"]
[Result "1/2-1/2"]
[TimeControl "90 min for 40 move + 30 min with an increment of 30 sec starting move 1"]
[BlackTitle "FM"]
[WhiteFideId "1761498"]
[BlackFideId "1707329"]
[WhiteElo "2064"]
[BlackElo "2181"]

1. e4 {[%clk 01:30:56]} {[%emt 00:00:03]} c5 {[%clk 01:30:51]} {[%emt
00:00:09]} 2. Nf3 {[%clk 01:31:17]} {[%emt 00:00:09]} d6 {[%clk 01:30:54]}
{[%emt 00:00:27]} 3. d3 {[%clk 01:31:42]} {[%emt 00:00:06]} Nc6 {[%clk
01:29:08]} {[%emt 00:02:16]} 4. g3 {[%clk 01:32:03]} {[%emt 00:00:08]} g6
{[%clk 01:29:19]} {[%emt 00:00:20]} 5. Bg2 {[%clk 01:32:28]} {[%emt 00:00:05]}
Bg7 {[%clk 01:29:17]} {[%emt 00:00:32]} 6. O-O {[%clk 01:32:29]} {[%emt
00:00:28]} e5 {[%clk 01:26:40]} {[%emt 00:03:07]} 7. c3 {[%clk 01:32:49]}
{[%emt 00:00:10]} Nge7 {[%clk 01:26:12]} {[%emt 00:00:58]} 8. a3 {[%clk
01:33:09]} {[%emt 00:00:11]} a5 {[%clk 01:22:56]} {[%emt 00:03:46]} 9. a4
{[%clk 01:33:28]} {[%emt 00:00:10]} O-O {[%clk 01:18:12]} {[%emt 00:05:15]} 10.
Na3 {[%clk 01:28:42]} {[%emt 00:05:16]} h6 {[%clk 01:11:03]} {[%emt 00:07:38]}
11. Nb5 {[%clk 01:23:42]} {[%emt 00:05:30]} Bg4 {[%clk 00:59:59]} {[%emt
00:11:34]} 12. h3 {[%clk 01:15:45]} {[%emt 00:08:28]} Be6 {[%clk 00:59:51]}
{[%emt 00:00:37]} 13. d4 {[%clk 01:10:37]} {[%emt 00:05:38]} exd4 {[%clk
00:56:50]} {[%emt 00:03:32]} 14. cxd4 {[%clk 01:10:57]} {[%emt 00:00:10]} Bc4
{[%clk 00:56:54]} {[%emt 00:00:26]} 15. Re1 {[%clk 01:07:16]} {[%emt 00:04:11]}
Bxb5 {[%clk 00:56:23]} {[%emt 00:01:01]} 16. axb5 {[%clk 01:07:37]} {[%emt
00:00:09]} Nxd4 {[%clk 00:56:38]} {[%emt 00:00:15]} 17. Nxd4 {[%clk 01:08:02]}
{[%emt 00:00:05]} cxd4 {[%clk 00:56:59]} {[%emt 00:00:09]} 18. f4 {[%clk
01:04:44]} {[%emt 00:03:47]} Rb8 {[%clk 00:50:42]} {[%emt 00:06:47]} 19. Qd3
{[%clk 00:58:21]} {[%emt 00:06:53]} Rc8 {[%clk 00:46:32]} {[%emt 00:04:41]} 20.
Bd2 {[%clk 00:57:42]} {[%emt 00:01:08]} b6 {[%clk 00:45:24]} {[%emt 00:01:39]}
21. b4 {[%clk 00:56:59]} {[%emt 00:01:13]} axb4 {[%clk 00:45:29]} {[%emt
00:00:25]} 22. Bxb4 {[%clk 00:54:37]} {[%emt 00:02:52]} Qc7 {[%clk 00:42:18]}
{[%emt 00:03:41]} 23. Ra6 {[%clk 00:42:01]} {[%emt 00:13:06]} Rfd8 {[%clk
00:40:55]} {[%emt 00:01:53]} 24. Bf1 {[%clk 00:37:53]} {[%emt 00:04:36]} Rd7
{[%clk 00:34:16]} {[%emt 00:07:11]} 25. h4 {[%clk 00:35:27]} {[%emt 00:02:55]}
d5 {[%clk 00:30:51]} {[%emt 00:03:55]} 26. Bh3 {[%clk 00:32:20]} {[%emt
00:03:38]} dxe4 {[%clk 00:30:49]} {[%emt 00:00:32]} 27. Qxe4 {[%clk 00:31:21]}
{[%emt 00:01:29]} Nf5 {[%clk 00:30:55]} {[%emt 00:00:23]} 28. h5 {[%clk
00:25:38]} {[%emt 00:06:14]} Qc4 {[%clk 00:28:33]} {[%emt 00:02:52]} 29. hxg6
{[%clk 00:20:13]} {[%emt 00:05:55]} fxg6 {[%clk 00:27:05]} {[%emt 00:01:58]} 30.
Bd2 {[%clk 00:13:28]} {[%emt 00:07:14]} d3 {[%clk 00:15:43]} {[%emt 00:11:52]}
31. Bxf5 {[%clk 00:07:41]} {[%emt 00:06:17]} gxf5 {[%clk 00:16:08]} {[%emt
00:00:05]} 32. Qxf5 {[%clk 00:08:06]} {[%emt 00:00:05]} Qc5+ {[%clk 00:07:35]}
{[%emt 00:09:03]} 33. Qxc5 {[%clk 00:08:26]} {[%emt 00:00:11]} Rxc5 {[%clk
00:07:13]} {[%emt 00:00:52]} 34. Rxb6 {[%clk 00:07:35]} {[%emt 00:01:21]} Rc2
{[%clk 00:07:29]} {[%emt 00:00:14]} 35. Rb8+ {[%clk 00:08:01]} {[%emt
00:00:03]} Kf7 {[%clk 00:07:13]} {[%emt 00:00:46]} 36. Rd1 {[%clk 00:08:25]}
{[%emt 00:00:06]} Bd4+ {[%clk 00:04:12]} {[%emt 00:03:32]} 37. Kf1 {[%clk
00:08:09]} {[%emt 00:00:45]} Re7 {[%clk 00:04:10]} {[%emt 00:00:33]} 38. Rd8
{[%clk 00:08:15]} {[%emt 00:00:24]} Re4 {[%clk 00:02:42]} {[%emt 00:01:57]} 39.
b6 {[%clk 00:07:52]} {[%emt 00:00:53]} Bxb6 {[%clk 00:02:01]} {[%emt 00:01:11]}
40. Rxd3 {[%clk 00:08:11]} {[%emt 00:00:11]} Bc5 {[%clk 00:01:45]} {[%emt
00:00:46]} 41. Kg2 {[%clk 00:05:27]} {[%emt 00:03:15]} Re3 {[%clk 00:28:32]}
{[%emt 00:03:43]} 42. Rd5 {[%clk 00:33:47]} {[%emt 00:02:09]} Rb3 {[%clk
00:25:31]} {[%emt 00:03:31]} 43. Rc1 {[%clk 00:31:17]} {[%emt 00:03:00]} Rxc1
{[%clk 00:18:45]} {[%emt 00:07:16]} 44. Bxc1 {[%clk 00:31:40]} {[%emt
00:00:07]} Be3 {[%clk 00:18:42]} {[%emt 00:00:33]} 45. Bxe3 {[%clk 00:30:55]}
{[%emt 00:01:17]} Rxe3 {[%clk 00:19:10]} {[%emt 00:00:01]} 46. Rd6 {[%clk
00:31:16]} {[%emt 00:00:08]} Kg7 {[%clk 00:19:24]} {[%emt 00:00:16]} 47. Kh3
{[%clk 00:31:12]} {[%emt 00:00:34]} Ra3 {[%clk 00:14:19]} {[%emt 00:05:35]} 48.
Kg4 {[%clk 00:31:28]} {[%emt 00:00:14]} Ra5 {[%clk 00:13:35]} {[%emt 00:01:15]}
49. Re6 {[%clk 00:30:40]} {[%emt 00:01:18]} Rb5 {[%clk 00:11:39]} {[%emt
00:02:25]} 50. Re5 {[%clk 00:30:24]} {[%emt 00:00:46]} Rb1 {[%clk 00:10:47]}
{[%emt 00:01:23]} 51. Re7+ {[%clk 00:28:25]} {[%emt 00:02:28]} Kf6 {[%clk
00:10:13]} {[%emt 00:01:03]} 52. Ra7 {[%clk 00:28:28]} {[%emt 00:00:28]} Rg1
{[%clk 00:05:54]} {[%emt 00:04:48]} 53. f5 {[%clk 00:27:35]} {[%emt 00:01:25]}
h5+ {[%clk 00:05:10]} {[%emt 00:01:14]} 54. Kxh5 {[%clk 00:27:59]} {[%emt
00:00:05]} 1/2-1/2

[Event "Masterklassen 2025"]
[Site "Uppsala, Sweden"]
[Date "2025.06.28"]
[Round "1.8"]
[White "Hammarstrom, Ulf"]
[Black "Lind, Jan-Olov"]
[Result "1-0"]
[TimeControl "90 min for 40 move + 30 min with an increment of 30 sec starting move 1"]
[WhiteFideId "1710214"]
[BlackFideId "1701193"]
[WhiteElo "2176"]
[BlackElo "2057"]

1. e4 {[%clk 01:30:44]} {[%emt 00:00:15]} c5 {[%clk 01:30:35]} {[%emt
00:00:26]} 2. Nf3 {[%clk 01:31:05]} {[%emt 00:00:09]} g6 {[%clk 01:30:23]}
{[%emt 00:00:41]} 3. c3 {[%clk 01:31:18]} {[%emt 00:00:18]} d5 {[%clk
01:30:27]} {[%emt 00:00:25]} 4. exd5 {[%clk 01:31:14]} {[%emt 00:00:34]} Qxd5
{[%clk 01:30:45]} {[%emt 00:00:12]} 5. d4 {[%clk 01:31:10]} {[%emt 00:00:35]}
Nc6 {[%clk 01:30:39]} {[%emt 00:00:34]} 6. Be3 {[%clk 01:29:57]} {[%emt
00:01:45]} Bg7 {[%clk 01:29:58]} {[%emt 00:01:11]} 7. dxc5 {[%clk 01:29:06]}
{[%emt 00:01:21]} Qxd1+ {[%clk 01:30:13]} {[%emt 00:00:15]} 8. Kxd1 {[%clk
01:29:28]} {[%emt 00:00:08]} Nf6 {[%clk 01:30:37]} {[%emt 00:00:06]} 9. Bc4
{[%clk 01:26:33]} {[%emt 00:03:25]} O-O {[%clk 01:30:50]} {[%emt 00:00:16]} 10.
Nbd2 {[%clk 01:24:25]} {[%emt 00:02:38]} Rd8 {[%clk 01:31:02]} {[%emt
00:00:18]} 11. Ke2 {[%clk 01:22:54]} {[%emt 00:02:02]} Nd5 {[%clk 01:30:43]}
{[%emt 00:00:48]} 12. Bxd5 {[%clk 01:20:21]} {[%emt 00:03:04]} Rxd5 {[%clk
01:31:03]} {[%emt 00:00:09]} 13. Rhd1 {[%clk 01:19:20]} {[%emt 00:01:31]} h6
{[%clk 01:18:56]} {[%emt 00:12:36]} 14. Nb3 {[%clk 01:16:01]} {[%emt 00:03:51]}
Rxd1 {[%clk 01:12:32]} {[%emt 00:06:53]} 15. Rxd1 {[%clk 01:15:32]} {[%emt
00:00:58]} e5 {[%clk 01:10:29]} {[%emt 00:02:34]} 16. Nfd2 {[%clk 01:05:30]}
{[%emt 00:10:33]} Be6 {[%clk 00:57:08]} {[%emt 00:13:50]} 17. Ne4 {[%clk
00:59:25]} {[%emt 00:06:35]} Re8 {[%clk 00:50:32]} {[%emt 00:07:06]} 18. Nd6
{[%clk 00:45:15]} {[%emt 00:14:40]} Re7 {[%clk 00:50:40]} {[%emt 00:00:21]} 19.
Kf1 {[%clk 00:36:13]} {[%emt 00:09:32]} g5 {[%clk 00:38:04]} {[%emt 00:13:06]}
20. Kg1 {[%clk 00:30:48]} {[%emt 00:05:55]} f5 {[%clk 00:37:36]} {[%emt
00:00:58]} 21. f3 {[%clk 00:30:46]} {[%emt 00:00:34]} Kh7 {[%clk 00:36:38]}
{[%emt 00:01:27]} 22. Bf2 {[%clk 00:27:58]} {[%emt 00:03:18]} Rd7 {[%clk
00:30:40]} {[%emt 00:06:29]} 23. Rd2 {[%clk 00:22:58]} {[%emt 00:05:29]} Bf8
{[%clk 00:22:05]} {[%emt 00:09:05]} 24. Nc1 {[%clk 00:20:49]} {[%emt 00:02:39]}
h5 {[%clk 00:17:53]} {[%emt 00:04:42]} 25. b4 {[%clk 00:19:25]} {[%emt
00:01:55]} g4 {[%clk 00:17:57]} {[%emt 00:00:25]} 26. fxg4 {[%clk 00:18:50]}
{[%emt 00:01:06]} hxg4 {[%clk 00:12:26]} {[%emt 00:06:00]} 27. Nb3 {[%clk
00:16:17]} {[%emt 00:03:03]} Bh6 {[%clk 00:11:00]} {[%emt 00:01:55]} 28. Re2
{[%clk 00:15:35]} {[%emt 00:01:14]} e4 {[%clk 00:10:02]} {[%emt 00:01:27]} 29.
b5 {[%clk 00:12:58]} {[%emt 00:03:08]} Nd8 {[%clk 00:07:41]} {[%emt 00:02:50]}
30. Nd4 {[%clk 00:11:39]} {[%emt 00:01:49]} Kg6 {[%clk 00:07:42]} {[%emt
00:00:30]} 31. Bg3 {[%clk 00:08:13]} {[%emt 00:03:56]} e3 {[%clk 00:06:34]}
{[%emt 00:01:38]} 32. c6 {[%clk 00:07:17]} {[%emt 00:01:26]} bxc6 {[%clk
00:06:21]} {[%emt 00:00:43]} 33. bxc6 {[%clk 00:07:38]} {[%emt 00:00:09]} Re7
{[%clk 00:06:08]} {[%emt 00:00:41]} 34. Bh4 {[%clk 00:06:07]} {[%emt 00:02:02]}
Bg5 {[%clk 00:01:12]} {[%emt 00:05:26]} 35. Bxg5 {[%clk 00:05:56]} {[%emt
00:00:41]} Kxg5 {[%clk 00:01:41]} {[%emt 00:00:02]} 36. Rxe3 {[%clk 00:05:51]}
{[%emt 00:00:35]} Kf6 {[%clk 00:00:52]} {[%emt 00:01:18]} 37. c7 {[%clk
00:05:40]} {[%emt 00:00:41]} Nf7 {[%clk 00:00:45]} {[%emt 00:00:37]} 38. Rxe6+
{[%clk 00:04:41]} {[%emt 00:01:29]} Rxe6 {[%clk 00:00:56]} {[%emt 00:00:19]} 39.
Nxf7 {[%clk 00:04:11]} {[%emt 00:01:01]} 1-0

[Event "Masterklassen 2025"]
[Site "Uppsala, Sweden"]
[Date "2025.06.28"]
[Round "1.9"]
[White "Willstedt, Lukas"]
[Black "Johnson, Daniel"]
[Result "0-1"]
[TimeControl "90 min for 40 move + 30 min with an increment of 30 sec starting move 1"]
[WhiteFideId "1751913"]
[BlackFideId "1721283"]
[WhiteElo "2055"]
[BlackElo "2175"]

1. d4 {[%clk 01:30:58]} {[%emt 00:00:02]} Nf6 {[%clk 01:26:37]} {[%emt
00:04:11]} 2. Nf3 {[%clk 01:30:51]} {[%emt 00:00:49]} d5 {[%clk 01:25:20]}
{[%emt 00:01:48]} 3. c4 {[%clk 01:31:12]} {[%emt 00:00:09]} e6 {[%clk
01:25:32]} {[%emt 00:00:17]} 4. g3 {[%clk 01:31:36]} {[%emt 00:00:06]} Be7
{[%clk 01:25:10]} {[%emt 00:00:52]} 5. Bg2 {[%clk 01:31:57]} {[%emt 00:00:09]}
O-O {[%clk 01:25:32]} {[%emt 00:00:08]} 6. O-O {[%clk 01:32:24]} {[%emt
00:00:03]} dxc4 {[%clk 01:25:45]} {[%emt 00:00:18]} 7. Qc2 {[%clk 01:32:47]}
{[%emt 00:00:06]} a6 {[%clk 01:25:36]} {[%emt 00:00:39]} 8. a4 {[%clk
01:33:12]} {[%emt 00:00:05]} Bd7 {[%clk 01:26:00]} {[%emt 00:00:06]} 9. Rd1
{[%clk 01:33:05]} {[%emt 00:00:37]} Bc6 {[%clk 01:25:25]} {[%emt 00:01:04]} 10.
Nc3 {[%clk 01:33:16]} {[%emt 00:00:19]} Bxf3 {[%clk 01:24:21]} {[%emt
00:01:35]} 11. Bxf3 {[%clk 01:32:38]} {[%emt 00:01:09]} Nc6 {[%clk 01:24:44]}
{[%emt 00:00:06]} 12. Bxc6 {[%clk 01:33:02]} {[%emt 00:00:06]} bxc6 {[%clk
01:25:10]} {[%emt 00:00:04]} 13. a5 {[%clk 01:33:23]} {[%emt 00:00:10]} Qb8
{[%clk 01:24:19]} {[%emt 00:01:20]} 14. Bg5 {[%clk 01:25:55]} {[%emt 00:07:57]}
Qb3 {[%clk 01:20:42]} {[%emt 00:04:08]} 15. Rdc1 {[%clk 01:16:08]} {[%emt
00:10:17]} Rfd8 {[%clk 01:01:50]} {[%emt 00:19:22]} 16. e3 {[%clk 01:14:22]}
{[%emt 00:02:16]} Rab8 {[%clk 00:58:38]} {[%emt 00:03:42]} 17. Bxf6 {[%clk
00:55:05]} {[%emt 00:19:48]} Qxc2 {[%clk 00:49:38]} {[%emt 00:09:30]} 18. Rxc2
{[%clk 00:55:29]} {[%emt 00:00:06]} gxf6 {[%clk 00:50:01]} {[%emt 00:00:07]} 19.
Ne4 {[%clk 00:52:05]} {[%emt 00:03:53]} f5 {[%clk 00:36:31]} {[%emt 00:13:59]}
20. Nd2 {[%clk 00:51:56]} {[%emt 00:00:40]} c5 {[%clk 00:35:20]} {[%emt
00:01:42]} 21. dxc5 {[%clk 00:48:22]} {[%emt 00:04:04]} c3 {[%clk 00:24:11]}
{[%emt 00:11:38]} 22. bxc3 {[%clk 00:48:27]} {[%emt 00:00:25]} Rd5 {[%clk
00:20:54]} {[%emt 00:03:46]} 23. c6 {[%clk 00:45:39]} {[%emt 00:03:19]} Rc5
{[%clk 00:19:36]} {[%emt 00:01:48]} 24. Nf3 {[%clk 00:44:06]} {[%emt 00:02:03]}
Bf6 {[%clk 00:15:40]} {[%emt 00:04:26]} 25. Nd4 {[%clk 00:41:38]} {[%emt
00:02:59]} Bxd4 {[%clk 00:15:36]} {[%emt 00:00:34]} 26. exd4 {[%clk 00:42:06]}
{[%emt 00:00:01]} Rxc6 {[%clk 00:15:52]} {[%emt 00:00:14]} 27. Ra4 {[%clk
00:41:48]} {[%emt 00:00:47]} Rb1+ {[%clk 00:10:55]} {[%emt 00:05:27]} 28. Kg2
{[%clk 00:42:12]} {[%emt 00:00:08]} Rd1 {[%clk 00:11:21]} {[%emt 00:00:03]} 29.
c4 {[%clk 00:33:02]} {[%emt 00:09:41]} Rxd4 {[%clk 00:11:36]} {[%emt 00:00:14]}
30. Kf1 {[%clk 00:32:45]} {[%emt 00:00:46]} Rc5 {[%clk 00:11:10]} {[%emt
00:00:58]} 31. Ke2 {[%clk 00:31:55]} {[%emt 00:01:19]} Re5+ {[%clk 00:11:14]}
{[%emt 00:00:26]} 32. Kf3 {[%clk 00:30:55]} {[%emt 00:01:28]} Kf8 {[%clk
00:10:06]} {[%emt 00:01:39]} 33. Rb2 {[%clk 00:30:29]} {[%emt 00:00:57]} Ree4
{[%clk 00:04:52]} {[%emt 00:05:44]} 34. Rb8+ {[%clk 00:28:51]} {[%emt
00:02:08]} Ke7 {[%clk 00:04:46]} {[%emt 00:00:36]} 35. Ra8 {[%clk 00:29:12]}
{[%emt 00:00:09]} Rd3+ {[%clk 00:01:41]} {[%emt 00:03:35]} 36. Kg2 {[%clk
00:29:36]} {[%emt 00:00:07]} Rd2 {[%clk 00:01:58]} {[%emt 00:00:12]} 37. Ra3
{[%clk 00:27:37]} {[%emt 00:02:30]} Rxc4 {[%clk 00:00:57]} {[%emt 00:01:31]} 38.
Rxa6 {[%clk 00:28:05]} {[%emt 00:00:02]} Rcc2 {[%clk 00:01:13]} {[%emt
00:00:13]} 39. Rf3 {[%clk 00:28:33]} {[%emt 00:00:02]} Ra2 {[%clk 00:01:16]}
{[%emt 00:00:26]} 40. Ra8 {[%clk 00:23:54]} {[%emt 00:05:10]} Kf6 {[%clk
00:00:33]} {[%emt 00:01:13]} 41. g4 {[%clk 00:21:32]} {[%emt 00:02:53]} Rd5
{[%clk 00:28:21]} {[%emt 00:02:41]} 42. a6 {[%clk 00:51:36]} {[%emt 00:00:28]}
Rda5 {[%clk 00:13:19]} {[%emt 00:15:31]} 43. gxf5 {[%clk 00:51:08]} {[%emt
00:00:58]} Rxf5 {[%clk 00:13:11]} {[%emt 00:00:37]} 44. a7 {[%clk 00:48:42]}
{[%emt 00:02:56]} c5 {[%clk 00:08:17]} {[%emt 00:05:24]} 45. Rc8 {[%clk
00:46:18]} {[%emt 00:02:55]} Rxf3 {[%clk 00:07:25]} {[%emt 00:01:22]} 46. Kxf3
{[%clk 00:46:44]} {[%emt 00:00:04]} Rxa7 {[%clk 00:07:32]} {[%emt 00:00:23]} 47.
Rxc5 {[%clk 00:47:12]} {[%emt 00:00:01]} Ra4 {[%clk 00:07:27]} {[%emt
00:00:35]} 48. Kg3 {[%clk 00:45:46]} {[%emt 00:01:55]} e5 {[%clk 00:07:05]}
{[%emt 00:00:53]} 49. Rc6+ {[%clk 00:45:19]} {[%emt 00:00:57]} Kg5 {[%clk
00:06:48]} {[%emt 00:00:47]} 50. Rc7 {[%clk 00:45:44]} {[%emt 00:00:06]} Ra3+
{[%clk 00:06:47]} {[%emt 00:00:31]} 51. Kg2 {[%clk 00:46:12]} {[%emt 00:00:02]}
Kg6 {[%emt 00:01:52]} 52. Re7 {[%clk 00:45:08]} f6 {[%clk 00:07:18]} {[%emt
00:00:09]} 53. f3 {[%clk 00:45:22]} {[%emt 00:00:16]} h5 {[%clk 00:07:08]}
{[%emt 00:00:40]} 54. h4 {[%clk 00:44:46]} {[%emt 00:01:07]} Kf5 {[%clk
00:05:29]} {[%emt 00:02:09]} 55. Kg3 {[%clk 00:44:21]} {[%emt 00:00:55]} Re3
{[%clk 00:05:26]} {[%emt 00:00:34]} 56. Kg2 {[%clk 00:43:44]} {[%emt 00:01:06]}
Kf4 {[%clk 00:05:38]} {[%emt 00:00:18]} 57. Rh7 {[%clk 00:43:57]} {[%emt
00:00:17]} Rxf3 {[%clk 00:05:37]} {[%emt 00:00:32]} 58. Rxh5 {[%clk 00:44:24]}
{[%emt 00:00:02]} e4 {[%clk 00:05:48]} {[%emt 00:00:19]} 59. Rh8 {[%clk
00:43:08]} {[%emt 00:01:46]} Rg3+ {[%clk 00:04:55]} {[%emt 00:01:22]} 60. Kh2
{[%clk 00:42:59]} {[%emt 00:00:38]} f5 {[%clk 00:03:34]} {[%emt 00:01:53]} 61.
Re8 {[%clk 00:42:07]} {[%emt 00:01:22]} e3 {[%clk 00:03:32]} {[%emt 00:00:32]}
62. Re6 {[%clk 00:42:17]} {[%emt 00:00:21]} Rg4 {[%clk 00:02:55]} {[%emt
00:01:06]} 63. Kh3 {[%clk 00:42:25]} {[%emt 00:00:22]} Kf3 {[%clk 00:02:52]}
{[%emt 00:00:32]} 64. h5 {[%clk 00:42:30]} {[%emt 00:00:26]} 0-1

[Event "Masterklassen 2025"]
[Site "Uppsala, Sweden"]
[Date "2025.06.28"]
[Round "1.10"]
[White "Eriksson, Jorgen"]
[Black "Schriever-Abeln, Marius"]
[Result "1-0"]
[TimeControl "90 min for 40 move + 30 min with an increment of 30 sec starting move 1"]
[WhiteFideId "1701967"]
[BlackFideId "1752650"]
[WhiteElo "2160"]
[BlackElo "2052"]

1. d4 {[%clk 01:30:40]} {[%emt 00:00:19]} Nf6 {[%clk 01:30:54]} {[%emt
00:00:07]} 2. Nf3 {[%clk 01:30:15]} {[%emt 00:00:55]} d5 {[%clk 01:30:41]}
{[%emt 00:00:43]} 3. Bf4 {[%clk 01:30:27]} {[%emt 00:00:17]} c5 {[%clk
01:29:42]} {[%emt 00:01:30]} 4. e3 {[%clk 01:30:43]} {[%emt 00:00:15]} Nc6
{[%clk 01:29:42]} {[%emt 00:00:30]} 5. Nbd2 {[%clk 01:29:25]} {[%emt 00:01:47]}
Bg4 {[%clk 01:27:07]} {[%emt 00:03:04]} 6. c3 {[%clk 01:28:36]} {[%emt
00:01:20]} e6 {[%clk 01:23:37]} {[%emt 00:04:01]} 7. h3 {[%clk 01:18:56]}
{[%emt 00:10:09]} Bh5 {[%clk 01:20:24]} {[%emt 00:03:43]} 8. Be2 {[%clk
01:09:54]} {[%emt 00:09:32]} Be7 {[%clk 01:18:00]} {[%emt 00:02:54]} 9. O-O
{[%clk 01:09:56]} {[%emt 00:00:27]} O-O {[%clk 01:16:23]} {[%emt 00:02:08]} 10.
dxc5 {[%clk 00:48:41]} {[%emt 00:21:45]} Bxc5 {[%emt 00:02:22]} 11. Ne5 {[%clk
00:45:44]} {[%emt 00:03:26]} Bxe2 {[%clk 01:00:09]} {[%emt 00:14:53]} 12. Qxe2
{[%clk 00:45:36]} {[%emt 00:00:37]} Bd6 {[%clk 00:57:35]} {[%emt 00:03:06]} 13.
Nxc6 {[%clk 00:42:21]} {[%emt 00:03:44]} bxc6 {[%clk 00:57:39]} {[%emt
00:00:26]} 14. Bxd6 {[%clk 00:42:02]} {[%emt 00:00:49]} Qxd6 {[%clk 00:58:02]}
{[%emt 00:00:07]} 15. c4 {[%clk 00:38:04]} {[%emt 00:04:29]} Rab8 {[%clk
00:50:27]} {[%emt 00:08:05]} 16. b3 {[%clk 00:34:59]} {[%emt 00:03:34]} e5
{[%clk 00:46:07]} {[%emt 00:04:50]} 17. Qd3 {[%clk 00:29:27]} {[%emt 00:06:01]}
Rfd8 {[%clk 00:35:37]} {[%emt 00:11:01]} 18. cxd5 {[%clk 00:28:42]} {[%emt
00:01:14]} cxd5 {[%clk 00:34:42]} {[%emt 00:01:26]} 19. Rac1 {[%clk 00:28:36]}
{[%emt 00:00:36]} Rbc8 {[%clk 00:25:31]} {[%emt 00:09:41]} 20. Qb1 {[%clk
00:13:58]} {[%emt 00:15:07]} e4 {[%clk 00:08:45]} {[%emt 00:17:17]} 21. Rxc8
{[%clk 00:12:48]} {[%emt 00:01:40]} Rxc8 {[%clk 00:09:01]} {[%emt 00:00:14]} 22.
Rc1 {[%clk 00:13:05]} {[%emt 00:00:13]} Re8 {[%clk 00:06:34]} {[%emt 00:02:57]}
23. Qc2 {[%clk 00:12:55]} {[%emt 00:00:40]} d4 {[%clk 00:04:48]} {[%emt
00:02:16]} 24. Nc4 {[%clk 00:11:44]} {[%emt 00:01:41]} Qd5 {[%clk 00:04:10]}
{[%emt 00:01:08]} 25. exd4 {[%clk 00:11:37]} {[%emt 00:00:37]} Qxd4 {[%clk
00:04:17]} {[%emt 00:00:24]} 26. Rd1 {[%clk 00:11:29]} {[%emt 00:00:37]} Qc5
{[%clk 00:04:02]} {[%emt 00:00:45]} 27. Qd2 {[%clk 00:09:58]} {[%emt 00:02:00]}
h6 {[%clk 00:02:31]} {[%emt 00:02:02]} 28. Qd4 {[%clk 00:08:28]} {[%emt
00:02:00]} Qc7 {[%clk 00:02:11]} {[%emt 00:00:50]} 29. Qd6 {[%clk 00:07:54]}
{[%emt 00:01:04]} Re7 {[%clk 00:01:19]} {[%emt 00:01:22]} 30. Qd8+ {[%clk
00:05:54]} {[%emt 00:02:30]} Kh7 {[%clk 00:01:02]} {[%emt 00:00:48]} 31. Qxc7
{[%clk 00:06:06]} {[%emt 00:00:17]} Rxc7 {[%clk 00:01:22]} {[%emt 00:00:10]} 32.
Kf1 {[%clk 00:06:08]} {[%emt 00:00:28]} g5 {[%clk 00:00:37]} {[%emt 00:01:15]}
33. Rd4 {[%clk 00:05:58]} {[%emt 00:00:39]} Kg6 {[%clk 00:00:34]} {[%emt
00:00:34]} 34. Ke2 {[%clk 00:05:18]} {[%emt 00:01:10]} Rd7 {[%clk 00:00:32]}
{[%emt 00:00:33]} 35. Ne5+ {[%clk 00:05:25]} {[%emt 00:00:21]} 1-0